Workbook

Sheet Sheet1
B1: Kinross Road Runners 2017 Club Championship
E2: Alloa Half | F2: Alloa Half | G2: Tay Ten | H2: Tay Ten | I2: Kinross PTA 10k | J2: Perth Parkrun | K2: Perth Parkrun | L2: Glenrothes 10k | M2: BrigBash 5m | N2: BrigBash 5m | O2: Kn'khill 3.9M | P2: Kn'hill 3.9M | Q2: Perthshire Half Marathon | R2: Perthshire Half Marathon | S2: East Neuk 10k | T2: Kirkcaldy Parkrun | U2: Kirkcaldy Parkrun | V2: Lochore 10k | W2: Templeton Ten | X2: Templeton Ten | Y2: Number of Races | Z2: Average Time | AA2: No. Races for ranking | AB2: Best 5 Average Time
E3: Actual | F3: 10k Equiv | G3: Actual | H3: 10k Equiv | I3: 10k Equiv | J3: Actual | K3: 10k Equiv | L3: 10k Equiv | M3: Actual | N3: 10k Equiv | O3: Actual | P3: 10k Equiv | Q3: Actual | R3: 10k Equiv | S3: 10k Equiv | T3: Actual | U3: 10k Equiv | V3: 10k Equiv | W3: Actual | X3: 10k Equiv
B4: Surname | C4: First | E4: hh:mm:ss | F4: hh:mm:ss | G4: hh:mm:ss | H4: hh:mm:ss | I4: hh:mm:ss | J4: hh:mm:ss | K4: hh:mm:ss | L4: hh:mm:ss | M4: hh:mm:ss | N4: hh:mm:ss | O4: hh:mm:ss | P4: hh:mm:ss | Q4: hh:mm:ss | R4: hh:mm:ss | S4: hh:mm:ss | T4: hh:mm:ss | U4: hh:mm:ss | V4: hh:mm:ss | W4: hh:mm:ss | X4: hh:mm:ss | Z4: hh:mm:ss | AB4: hh:mm:ss
B5: Test | C5: Test | E5: 1.157407407e-05 | F5: =(E5*86400)*POWER((6.2138818/13.1094),1.07)/86400 -> 5.206801754e-06 | G5: 1.157407407e-05 | H5: =(G5*86400)*POWER((6.2138818/10),1.07)/86400 -> 6.956401732e-06 | I5: 1.157407407e-05 | J5: 1.157407407e-05 | K5: =(J5*86400)*POWER((10/5),1.07)/86400 -> 2.429899731e-05 | L5: 1.157407407e-05 | M5: 1.157407407e-05 | N5: =(M5*86400)*POWER((6.2138818/5),1.07)/86400 -> 1.460450191e-05 | O5: 1.157407407e-05 | P5: =(O5*86400)*POWER((6.2138818/3.9),1.07)/86400 -> 1.905221725e-05 | Q5: 0.01388888889 | R5: =(Q5*86400)*POWER((6.2138818/13.1094),1.07)/86400 -> 0.006248162104 | S5: 1.157407407e-05 | T5: 1.157407407e-05 | U5: =(T5*86400)*POWER((10/5),1.07)/86400 -> 2.429899731e-05 | V5: 1.157407407e-05 | W5: 1.157407407e-05 | X5: =(W5*86400)*POWER((6.2138818/10),1.07)/86400 -> 6.956401732e-06 | Y5: =COUNT(F5,H5,I5,K5:L5,N5,P5,R5,S5,U5,V5,X5) -> 12 | Z5: =IFERROR(AVERAGE(F5,H5,I5,K5:L5,N5,P5,R5,S5,U5,V5,X5),"No race run") -> 0.00053298606 | AA5: =IF(COUNT(F5,H5,I5,K5:L5,N5,P5,R5,#REF!,U5)>5,5,COUNT(F5,H5,I5,K5:L5,N5,P5,R5,#REF!,U5)) -> 5 | AB5: =IFERROR(IF(Y5>5,AVERAGE(SMALL((F5,H5,I5,K5:L5,N5,P5,R5,S5,U5,V5,X5),{1,2,3,4,5})),Z5),"No race run") -> 8.453550673e-06
B6: Scott | C6: David | D6: M | G6: 0.04337962963 | H6: =(G6*86400)*POWER((6.2138818/10),1.07)/86400 -> 0.02607259369 | I6: 0.02641203704 | J6: 0.01239583333 | K6: =(J6*86400)*POWER((10/5),1.07)/86400 -> 0.02602422611 | M6: 0.02025462963 | N6: =(M6*86400)*POWER((6.2138818/5),1.07)/86400 -> 0.02555787835 | O6: 0.01548611111 | P6: =(O6*86400)*POWER((6.2138818/3.9),1.07)/86400 -> 0.02549186668 | Y6: =COUNT(F6,H6,I6,K6:L6,N6,P6,R6,S6,U6,V6,X6) -> 5 | Z6: =IFERROR(AVERAGE(F6,H6,I6,K6:L6,N6,P6,R6,S6,U6,V6,X6),"No race run") -> 0.02591172037 | AA6: =IF(COUNT(F6,H6,I6,K6:L6,N6,P6,R6,#REF!,U6)>5,5,COUNT(F6,H6,I6,K6:L6,N6,P6,R6,#REF!,U6)) -> 5 | AB6: =IFERROR(IF(Y6>5,AVERAGE(SMALL((F6,H6,I6,K6:L6,N6,P6,R6,S6,U6,V6,X6),{1,2,3,4,5})),Z6),"No race run") -> 0.02591172037
B7: Kemp | C7: Allan | D7: M | I7: 0.02685185185 | J7: 0.01237268519 | K7: =(J7*86400)*POWER((10/5),1.07)/86400 -> 0.02597562812 | L7: 0.02612268519 | O7: 0.01542824074 | P7: =(O7*86400)*POWER((6.2138818/3.9),1.07)/86400 -> 0.02539660559 | Y7: =COUNT(F7,H7,I7,K7:L7,N7,P7,R7,S7,U7,V7,X7) -> 4 | Z7: =IFERROR(AVERAGE(F7,H7,I7,K7:L7,N7,P7,R7,S7,U7,V7,X7),"No race run") -> 0.02608669269 | AA7: =IF(COUNT(F7,H7,I7,K7:L7,N7,P7,R7,#REF!,U7)>5,5,COUNT(F7,H7,I7,K7:L7,N7,P7,R7,#REF!,U7)) -> 4 | AB7: =IFERROR(IF(Y7>5,AVERAGE(SMALL((F7,H7,I7,K7:L7,N7,P7,R7,S7,U7,V7,X7),{1,2,3,4,5})),Z7),"No race run") -> 0.02608669269
B8: Strachan | C8: Scott | D8: M | E8: 0.05820601852 | F8: =(E8*86400)*POWER((6.2138818/13.1094),1.07)/86400 -> 0.02618500602 | G8: 0.04681712963 | H8: =(G8*86400)*POWER((6.2138818/10),1.07)/86400 -> 0.02813864501 | J8: 0.01251157407 | K8: =(J8*86400)*POWER((10/5),1.07)/86400 -> 0.02626721609 | L8: 0.02678240741 | O8: 0.01582175926 | P8: =(O8*86400)*POWER((6.2138818/3.9),1.07)/86400 -> 0.02604438098 | Y8: =COUNT(F8,H8,I8,K8:L8,N8,P8,R8,S8,U8,V8,X8) -> 5 | Z8: =IFERROR(AVERAGE(F8,H8,I8,K8:L8,N8,P8,R8,S8,U8,V8,X8),"No race run") -> 0.0266835311 | AA8: =IF(COUNT(F8,H8,I8,K8:L8,N8,P8,R8,#REF!,U8)>5,5,COUNT(F8,H8,I8,K8:L8,N8,P8,R8,#REF!,U8)) -> 5 | AB8: =IFERROR(IF(Y8>5,AVERAGE(SMALL((F8,H8,I8,K8:L8,N8,P8,R8,S8,U8,V8,X8),{1,2,3,4,5})),Z8),"No race run") -> 0.0266835311
B9: Johns | C9: Andy | D9: M | E9: 0.06094907407 | F9: =(E9*86400)*POWER((6.2138818/13.1094),1.07)/86400 -> 0.02741901803 | G9: 0.0466087963 | H9: =(G9*86400)*POWER((6.2138818/10),1.07)/86400 -> 0.02801342978 | M9: 0.02189814815 | N9: =(M9*86400)*POWER((6.2138818/5),1.07)/86400 -> 0.02763171762 | Y9: =COUNT(F9,H9,I9,K9:L9,N9,P9,R9,S9,U9,V9,X9) -> 3 | Z9: =IFERROR(AVERAGE(F9,H9,I9,K9:L9,N9,P9,R9,S9,U9,V9,X9),"No race run") -> 0.02768805514 | AA9: =IF(COUNT(F9,H9,I9,K9:L9,N9,P9,R9,#REF!,U9)>5,5,COUNT(F9,H9,I9,K9:L9,N9,P9,R9,#REF!,U9)) -> 3 | AB9: =IFERROR(IF(Y9>5,AVERAGE(SMALL((F9,H9,I9,K9:L9,N9,P9,R9,S9,U9,V9,X9),{1,2,3,4,5})),Z9),"No race run") -> 0.02768805514
B10: Newton | C10: Matt | D10: M | I10: 0.02822916667 | J10: 0.01320601852 | K10: =(J10*86400)*POWER((10/5),1.07)/86400 -> 0.02772515593 | L10: 0.0284375 | M10: 0.02143518519 | N10: =(M10*86400)*POWER((6.2138818/5),1.07)/86400 -> 0.02704753754 | O10: 0.01642361111 | P10: =(O10*86400)*POWER((6.2138818/3.9),1.07)/86400 -> 0.02703509628 | Y10: =COUNT(F10,H10,I10,K10:L10,N10,P10,R10,S10,U10,V10,X10) -> 5 | Z10: =IFERROR(AVERAGE(F10,H10,I10,K10:L10,N10,P10,R10,S10,U10,V10,X10),"No race run") -> 0.02769489128 | AA10: =IF(COUNT(F10,H10,I10,K10:L10,N10,P10,R10,#REF!,U10)>5,5,COUNT(F10,H10,I10,K10:L10,N10,P10,R10,#REF!,U10)) -> 5 | AB10: =IFERROR(IF(Y10>5,AVERAGE(SMALL((F10,H10,I10,K10:L10,N10,P10,R10,S10,U10,V10,X10),{1,2,3,4,5})),Z10),"No race run") -> 0.02769489128
B11: Webster | C11: Billy | D11: M | E11: 0.06324074074 | F11: =(E11*86400)*POWER((6.2138818/13.1094),1.07)/86400 -> 0.02844996478 | G11: 0.04731481481 | H11: =(G11*86400)*POWER((6.2138818/10),1.07)/86400 -> 0.02843777028 | J11: 0.01344907407 | K11: =(J11*86400)*POWER((10/5),1.07)/86400 -> 0.02823543487 | L11: 0.02900462963 | M11: 0.02256944444 | N11: =(M11*86400)*POWER((6.2138818/5),1.07)/86400 -> 0.02847877873 | O11: 0.01681712963 | P11: =(O11*86400)*POWER((6.2138818/3.9),1.07)/86400 -> 0.02768287166 | Y11: =COUNT(F11,H11,I11,K11:L11,N11,P11,R11,S11,U11,V11,X11) -> 6 | Z11: =IFERROR(AVERAGE(F11,H11,I11,K11:L11,N11,P11,R11,S11,U11,V11,X11),"No race run") -> 0.02838157499 | AA11: =IF(COUNT(F11,H11,I11,K11:L11,N11,P11,R11,#REF!,U11)>5,5,COUNT(F11,H11,I11,K11:L11,N11,P11,R11,#REF!,U11)) -> 5 | AB11: =IFERROR(IF(Y11>5,AVERAGE(SMALL((F11,H11,I11,K11:L11,N11,P11,R11,S11,U11,V11,X11),{1,2,3,4,5})),Z11),"No race run") -> 0.02825696406
B12: Beveridge | C12: John | D12: M | E12: 0.06295138889 | F12: =(E12*86400)*POWER((6.2138818/13.1094),1.07)/86400 -> 0.02831979474 | J12: 0.01400462963 | K12: =(J12*86400)*POWER((10/5),1.07)/86400 -> 0.02940178674 | L12: 0.02828703704 | M12: 0.02225694444 | N12: =(M12*86400)*POWER((6.2138818/5),1.07)/86400 -> 0.02808445718 | O12: 0.01670138889 | P12: =(O12*86400)*POWER((6.2138818/3.9),1.07)/86400 -> 0.02749234949 | Y12: =COUNT(F12,H12,I12,K12:L12,N12,P12,R12,S12,U12,V12,X12) -> 5 | Z12: =IFERROR(AVERAGE(F12,H12,I12,K12:L12,N12,P12,R12,S12,U12,V12,X12),"No race run") -> 0.02831708504 | AA12: =IF(COUNT(F12,H12,I12,K12:L12,N12,P12,R12,#REF!,U12)>5,5,COUNT(F12,H12,I12,K12:L12,N12,P12,R12,#REF!,U12)) -> 5 | AB12: =IFERROR(IF(Y12>5,AVERAGE(SMALL((F12,H12,I12,K12:L12,N12,P12,R12,S12,U12,V12,X12),{1,2,3,4,5})),Z12),"No race run") -> 0.02831708504
B13: Jones | C13: Tim | D13: M | J13: 0.01385416667 | K13: =(J13*86400)*POWER((10/5),1.07)/86400 -> 0.02908589978 | L13: 0.0287962963 | M13: 0.02252314815 | N13: =(M13*86400)*POWER((6.2138818/5),1.07)/86400 -> 0.02842036072 | O13: 0.01716435185 | P13: =(O13*86400)*POWER((6.2138818/3.9),1.07)/86400 -> 0.02825443818 | Y13: =COUNT(F13,H13,I13,K13:L13,N13,P13,R13,S13,U13,V13,X13) -> 4 | Z13: =IFERROR(AVERAGE(F13,H13,I13,K13:L13,N13,P13,R13,S13,U13,V13,X13),"No race run") -> 0.02863924874 | AA13: =IF(COUNT(F13,H13,I13,K13:L13,N13,P13,R13,#REF!,U13)>5,5,COUNT(F13,H13,I13,K13:L13,N13,P13,R13,#REF!,U13)) -> 4 | AB13: =IFERROR(IF(Y13>5,AVERAGE(SMALL((F13,H13,I13,K13:L13,N13,P13,R13,S13,U13,V13,X13),{1,2,3,4,5})),Z13),"No race run") -> 0.02863924874
B14: Hill | C14: Martin | D14: M | G14: 0.05013888889 | H14: =(G14*86400)*POWER((6.2138818/10),1.07)/86400 -> 0.0301351323 | I14: 0.02913194444 | J14: 0.01363425926 | K14: =(J14*86400)*POWER((10/5),1.07)/86400 -> 0.02862421883 | M14: 0.02282407407 | N14: =(M14*86400)*POWER((6.2138818/5),1.07)/86400 -> 0.02880007777 | O14: 0.01743055556 | P14: =(O14*86400)*POWER((6.2138818/3.9),1.07)/86400 -> 0.02869263918 | Y14: =COUNT(F14,H14,I14,K14:L14,N14,P14,R14,S14,U14,V14,X14) -> 5 | Z14: =IFERROR(AVERAGE(F14,H14,I14,K14:L14,N14,P14,R14,S14,U14,V14,X14),"No race run") -> 0.0290768025 | AA14: =IF(COUNT(F14,H14,I14,K14:L14,N14,P14,R14,#REF!,U14)>5,5,COUNT(F14,H14,I14,K14:L14,N14,P14,R14,#REF!,U14)) -> 5 | AB14: =IFERROR(IF(Y14>5,AVERAGE(SMALL((F14,H14,I14,K14:L14,N14,P14,R14,S14,U14,V14,X14),{1,2,3,4,5})),Z14),"No race run") -> 0.0290768025
B15: Kemp | C15: Graham | D15: M | I15: 0.02949074074 | J15: 0.01369212963 | K15: =(J15*86400)*POWER((10/5),1.07)/86400 -> 0.02874571381 | L15: 0.02991898148 | M15: 0.02251157407 | N15: =(M15*86400)*POWER((6.2138818/5),1.07)/86400 -> 0.02840575622 | Y15: =COUNT(F15,H15,I15,K15:L15,N15,P15,R15,S15,U15,V15,X15) -> 4 | Z15: =IFERROR(AVERAGE(F15,H15,I15,K15:L15,N15,P15,R15,S15,U15,V15,X15),"No race run") -> 0.02914029806 | AA15: =IF(COUNT(F15,H15,I15,K15:L15,N15,P15,R15,#REF!,U15)>5,5,COUNT(F15,H15,I15,K15:L15,N15,P15,R15,#REF!,U15)) -> 4 | AB15: =IFERROR(IF(Y15>5,AVERAGE(SMALL((F15,H15,I15,K15:L15,N15,P15,R15,S15,U15,V15,X15),{1,2,3,4,5})),Z15),"No race run") -> 0.02914029806
B16: Gordon | C16: Jillian | D16: F | E16: 0.06847222222 | F16: =(E16*86400)*POWER((6.2138818/13.1094),1.07)/86400 -> 0.03080343917 | G16: 0.05041666667 | H16: =(G16*86400)*POWER((6.2138818/10),1.07)/86400 -> 0.03030208594 | I16: 0.03005787037 | J16: 0.01422453704 | K16: =(J16*86400)*POWER((10/5),1.07)/86400 -> 0.02986346769 | L16: 0.02936342593 | O16: 0.01774305556 | P16: =(O16*86400)*POWER((6.2138818/3.9),1.07)/86400 -> 0.02920704904 | Q16: 0.06417824074 | R16: =(Q16*86400)*POWER((6.2138818/13.1094),1.07)/86400 -> 0.02887171572 | Y16: =COUNT(F16,H16,I16,K16:L16,N16,P16,R16,S16,U16,V16,X16) -> 7 | Z16: =IFERROR(AVERAGE(F16,H16,I16,K16:L16,N16,P16,R16,S16,U16,V16,X16),"No race run") -> 0.02978129341 | AA16: =IF(COUNT(F16,H16,I16,K16:L16,N16,P16,R16,#REF!,U16)>5,5,COUNT(F16,H16,I16,K16:L16,N16,P16,R16,#REF!,U16)) -> 5 | AB16: =IFERROR(IF(Y16>5,AVERAGE(SMALL((F16,H16,I16,K16:L16,N16,P16,R16,S16,U16,V16,X16),{1,2,3,4,5})),Z16),"No race run") -> 0.02947270575
B17: Freck | C17: Sandy | D17: M | G17: 0.05074074074 | H17: =(G17*86400)*POWER((6.2138818/10),1.07)/86400 -> 0.03049686519 | I17: 0.02960648148 | M17: 0.02305555556 | N17: =(M17*86400)*POWER((6.2138818/5),1.07)/86400 -> 0.02909216781 | O17: 0.01747685185 | P17: =(O17*86400)*POWER((6.2138818/3.9),1.07)/86400 -> 0.02876884804 | Y17: =COUNT(F17,H17,I17,K17:L17,N17,P17,R17,S17,U17,V17,X17) -> 4 | Z17: =IFERROR(AVERAGE(F17,H17,I17,K17:L17,N17,P17,R17,S17,U17,V17,X17),"No race run") -> 0.02949109063 | AA17: =IF(COUNT(F17,H17,I17,K17:L17,N17,P17,R17,#REF!,U17)>5,5,COUNT(F17,H17,I17,K17:L17,N17,P17,R17,#REF!,U17)) -> 4 | AB17: =IFERROR(IF(Y17>5,AVERAGE(SMALL((F17,H17,I17,K17:L17,N17,P17,R17,S17,U17,V17,X17),{1,2,3,4,5})),Z17),"No race run") -> 0.02949109063
B18: Grant | C18: Ian | D18: M | E18: 0.0655787037 | F18: =(E18*86400)*POWER((6.2138818/13.1094),1.07)/86400 -> 0.02950173874 | Y18: =COUNT(F18,H18,I18,K18:L18,N18,P18,R18,S18,U18,V18,X18) -> 1 | Z18: =IFERROR(AVERAGE(F18,H18,I18,K18:L18,N18,P18,R18,S18,U18,V18,X18),"No race run") -> 0.02950173874 | AA18: =IF(COUNT(F18,H18,I18,K18:L18,N18,P18,R18,#REF!,U18)>5,5,COUNT(F18,H18,I18,K18:L18,N18,P18,R18,#REF!,U18)) -> 1 | AB18: =IFERROR(IF(Y18>5,AVERAGE(SMALL((F18,H18,I18,K18:L18,N18,P18,R18,S18,U18,V18,X18),{1,2,3,4,5})),Z18),"No race run") -> 0.02950173874
B19: Hutt | C19: Sarah | D19: F | G19: 0.05078703704 | H19: =(G19*86400)*POWER((6.2138818/10),1.07)/86400 -> 0.0305246908 | M19: 0.0233912037 | N19: =(M19*86400)*POWER((6.2138818/5),1.07)/86400 -> 0.02951569836 | O19: 0.01783564815 | P19: =(O19*86400)*POWER((6.2138818/3.9),1.07)/86400 -> 0.02935946678 | Q19: 0.0655787037 | R19: =(Q19*86400)*POWER((6.2138818/13.1094),1.07)/86400 -> 0.02950173874 | Y19: =COUNT(F19,H19,I19,K19:L19,N19,P19,R19,S19,U19,V19,X19) -> 4 | Z19: =IFERROR(AVERAGE(F19,H19,I19,K19:L19,N19,P19,R19,S19,U19,V19,X19),"No race run") -> 0.02972539867 | AA19: =IF(COUNT(F19,H19,I19,K19:L19,N19,P19,R19,#REF!,U19)>5,5,COUNT(F19,H19,I19,K19:L19,N19,P19,R19,#REF!,U19)) -> 4 | AB19: =IFERROR(IF(Y19>5,AVERAGE(SMALL((F19,H19,I19,K19:L19,N19,P19,R19,S19,U19,V19,X19),{1,2,3,4,5})),Z19),"No race run") -> 0.02972539867
B20: Allcoat | C20: Paul | D20: M | E20: 0.06563657407 | F20: =(E20*86400)*POWER((6.2138818/13.1094),1.07)/86400 -> 0.02952777274 | I20: 0.02921296296 | L20: 0.03114583333 | M20: 0.02342592593 | N20: =(M20*86400)*POWER((6.2138818/5),1.07)/86400 -> 0.02955951187 | O20: 0.01792824074 | P20: =(O20*86400)*POWER((6.2138818/3.9),1.07)/86400 -> 0.02951188452 | Y20: =COUNT(F20,H20,I20,K20:L20,N20,P20,R20,S20,U20,V20,X20) -> 5 | Z20: =IFERROR(AVERAGE(F20,H20,I20,K20:L20,N20,P20,R20,S20,U20,V20,X20),"No race run") -> 0.02979159309 | AA20: =IF(COUNT(F20,H20,I20,K20:L20,N20,P20,R20,#REF!,U20)>5,5,COUNT(F20,H20,I20,K20:L20,N20,P20,R20,#REF!,U20)) -> 5 | AB20: =IFERROR(IF(Y20>5,AVERAGE(SMALL((F20,H20,I20,K20:L20,N20,P20,R20,S20,U20,V20,X20),{1,2,3,4,5})),Z20),"No race run") -> 0.02979159309
B21: Jarron | C21: Chester | D21: M | I21: 0.02983796296 | Y21: =COUNT(F21,H21,I21,K21:L21,N21,P21,R21,S21,U21,V21,X21) -> 1 | Z21: =IFERROR(AVERAGE(F21,H21,I21,K21:L21,N21,P21,R21,S21,U21,V21,X21),"No race run") -> 0.02983796296 | AA21: =IF(COUNT(F21,H21,I21,K21:L21,N21,P21,R21,#REF!,U21)>5,5,COUNT(F21,H21,I21,K21:L21,N21,P21,R21,#REF!,U21)) -> 1 | AB21: =IFERROR(IF(Y21>5,AVERAGE(SMALL((F21,H21,I21,K21:L21,N21,P21,R21,S21,U21,V21,X21),{1,2,3,4,5})),Z21),"No race run") -> 0.02983796296
B22: Nisbet | C22: Stewart | D22: M | E22: 0.06512731481 | F22: =(E22*86400)*POWER((6.2138818/13.1094),1.07)/86400 -> 0.02929867347 | G22: 0.04837962963 | H22: =(G22*86400)*POWER((6.2138818/10),1.07)/86400 -> 0.02907775924 | J22: 0.01836805556 | K22: =(J22*86400)*POWER((10/5),1.07)/86400 -> 0.03856250872 | L22: 0.03266203704 | M22: 0.02484953704 | N22: =(M22*86400)*POWER((6.2138818/5),1.07)/86400 -> 0.03135586561 | O22: 0.01886574074 | P22: =(O22*86400)*POWER((6.2138818/3.9),1.07)/86400 -> 0.03105511411 | Q22: 0.07153935185 | R22: =(Q22*86400)*POWER((6.2138818/13.1094),1.07)/86400 -> 0.03218324164 | Y22: =COUNT(F22,H22,I22,K22:L22,N22,P22,R22,S22,U22,V22,X22) -> 7 | Z22: =IFERROR(AVERAGE(F22,H22,I22,K22:L22,N22,P22,R22,S22,U22,V22,X22),"No race run") -> 0.03202788569 | AA22: =IF(COUNT(F22,H22,I22,K22:L22,N22,P22,R22,#REF!,U22)>5,5,COUNT(F22,H22,I22,K22:L22,N22,P22,R22,#REF!,U22)) -> 5 | AB22: =IFERROR(IF(Y22>5,AVERAGE(SMALL((F22,H22,I22,K22:L22,N22,P22,R22,S22,U22,V22,X22),{1,2,3,4,5})),Z22),"No race run") -> 0.03059413081
B23: Sinclair | C23: Ally | D23: M | O23: 0.01861111111 | P23: =(O23*86400)*POWER((6.2138818/3.9),1.07)/86400 -> 0.03063596534 | Y23: =COUNT(F23,H23,I23,K23:L23,N23,P23,R23,S23,U23,V23,X23) -> 1 | Z23: =IFERROR(AVERAGE(F23,H23,I23,K23:L23,N23,P23,R23,S23,U23,V23,X23),"No race run") -> 0.03063596534 | AA23: =IF(COUNT(F23,H23,I23,K23:L23,N23,P23,R23,#REF!,U23)>5,5,COUNT(F23,H23,I23,K23:L23,N23,P23,R23,#REF!,U23)) -> 1 | AB23: =IFERROR(IF(Y23>5,AVERAGE(SMALL((F23,H23,I23,K23:L23,N23,P23,R23,S23,U23,V23,X23),{1,2,3,4,5})),Z23),"No race run") -> 0.03063596534
B24: Gray | C24: Kirsty | D24: F | G24: 0.05253472222 | H24: =(G24*86400)*POWER((6.2138818/10),1.07)/86400 -> 0.03157510746 | J24: 0.01434027778 | K24: =(J24*86400)*POWER((10/5),1.07)/86400 -> 0.03010645766 | L24: 0.03105324074 | M24: 0.02469907407 | N24: =(M24*86400)*POWER((6.2138818/5),1.07)/86400 -> 0.03116600708 | Y24: =COUNT(F24,H24,I24,K24:L24,N24,P24,R24,S24,U24,V24,X24) -> 4 | Z24: =IFERROR(AVERAGE(F24,H24,I24,K24:L24,N24,P24,R24,S24,U24,V24,X24),"No race run") -> 0.03097520324 | AA24: =IF(COUNT(F24,H24,I24,K24:L24,N24,P24,R24,#REF!,U24)>5,5,COUNT(F24,H24,I24,K24:L24,N24,P24,R24,#REF!,U24)) -> 4 | AB24: =IFERROR(IF(Y24>5,AVERAGE(SMALL((F24,H24,I24,K24:L24,N24,P24,R24,S24,U24,V24,X24),{1,2,3,4,5})),Z24),"No race run") -> 0.03097520324
B25: Dobson | C25: Judith | D25: F | G25: 0.05071759259 | H25: =(G25*86400)*POWER((6.2138818/10),1.07)/86400 -> 0.03048295239 | L25: 0.03146990741 | M25: 0.02487268519 | N25: =(M25*86400)*POWER((6.2138818/5),1.07)/86400 -> 0.03138507461 | O25: 0.01877314815 | P25: =(O25*86400)*POWER((6.2138818/3.9),1.07)/86400 -> 0.03090269638 | Y25: =COUNT(F25,H25,I25,K25:L25,N25,P25,R25,S25,U25,V25,X25) -> 4 | Z25: =IFERROR(AVERAGE(F25,H25,I25,K25:L25,N25,P25,R25,S25,U25,V25,X25),"No race run") -> 0.0310601577 | AA25: =IF(COUNT(F25,H25,I25,K25:L25,N25,P25,R25,#REF!,U25)>5,5,COUNT(F25,H25,I25,K25:L25,N25,P25,R25,#REF!,U25)) -> 4 | AB25: =IFERROR(IF(Y25>5,AVERAGE(SMALL((F25,H25,I25,K25:L25,N25,P25,R25,S25,U25,V25,X25),{1,2,3,4,5})),Z25),"No race run") -> 0.0310601577
B26: Nisbet | C26: Fiona | D26: F | E26: 0.0715625 | F26: =(E26*86400)*POWER((6.2138818/13.1094),1.07)/86400 -> 0.03219365524 | G26: 0.05145833333 | H26: =(G26*86400)*POWER((6.2138818/10),1.07)/86400 -> 0.0309281621 | J26: 0.01505787037 | K26: =(J26*86400)*POWER((10/5),1.07)/86400 -> 0.0316129955 | L26: 0.03293981481 | M26: 0.02359953704 | N26: =(M26*86400)*POWER((6.2138818/5),1.07)/86400 -> 0.0297785794 | Y26: =COUNT(F26,H26,I26,K26:L26,N26,P26,R26,S26,U26,V26,X26) -> 5 | Z26: =IFERROR(AVERAGE(F26,H26,I26,K26:L26,N26,P26,R26,S26,U26,V26,X26),"No race run") -> 0.03149064141 | AA26: =IF(COUNT(F26,H26,I26,K26:L26,N26,P26,R26,#REF!,U26)>5,5,COUNT(F26,H26,I26,K26:L26,N26,P26,R26,#REF!,U26)) -> 5 | AB26: =IFERROR(IF(Y26>5,AVERAGE(SMALL((F26,H26,I26,K26:L26,N26,P26,R26,S26,U26,V26,X26),{1,2,3,4,5})),Z26),"No race run") -> 0.03149064141
B27: Blair | C27: Steven | D27: M | J27: 0.01548611111 | K27: =(J27*86400)*POWER((10/5),1.07)/86400 -> 0.0325120584 | L27: 0.03417824074 | M27: 0.02414351852 | N27: =(M27*86400)*POWER((6.2138818/5),1.07)/86400 -> 0.03046499099 | O27: 0.01775462963 | P27: =(O27*86400)*POWER((6.2138818/3.9),1.07)/86400 -> 0.02922610126 | Y27: =COUNT(F27,H27,I27,K27:L27,N27,P27,R27,S27,U27,V27,X27) -> 4 | Z27: =IFERROR(AVERAGE(F27,H27,I27,K27:L27,N27,P27,R27,S27,U27,V27,X27),"No race run") -> 0.03159534785 | AA27: =IF(COUNT(F27,H27,I27,K27:L27,N27,P27,R27,#REF!,U27)>5,5,COUNT(F27,H27,I27,K27:L27,N27,P27,R27,#REF!,U27)) -> 4 | AB27: =IFERROR(IF(Y27>5,AVERAGE(SMALL((F27,H27,I27,K27:L27,N27,P27,R27,S27,U27,V27,X27),{1,2,3,4,5})),Z27),"No race run") -> 0.03159534785
B28: Edgerton | C28: Peter | D28: M | L28: 0.03258101852 | M28: 0.0252662037 | N28: =(M28*86400)*POWER((6.2138818/5),1.07)/86400 -> 0.03188162767 | O28: 0.01931712963 | P28: =(O28*86400)*POWER((6.2138818/3.9),1.07)/86400 -> 0.03179815059 | Q28: 0.07019675926 | R28: =(Q28*86400)*POWER((6.2138818/13.1094),1.07)/86400 -> 0.03157925264 | Y28: =COUNT(F28,H28,I28,K28:L28,N28,P28,R28,S28,U28,V28,X28) -> 4 | Z28: =IFERROR(AVERAGE(F28,H28,I28,K28:L28,N28,P28,R28,S28,U28,V28,X28),"No race run") -> 0.03196001235 | AA28: =IF(COUNT(F28,H28,I28,K28:L28,N28,P28,R28,#REF!,U28)>5,5,COUNT(F28,H28,I28,K28:L28,N28,P28,R28,#REF!,U28)) -> 4 | AB28: =IFERROR(IF(Y28>5,AVERAGE(SMALL((F28,H28,I28,K28:L28,N28,P28,R28,S28,U28,V28,X28),{1,2,3,4,5})),Z28),"No race run") -> 0.03196001235
B29: Dobson | C29: Ben | D29: M | E29: 0.07366898148 | F29: =(E29*86400)*POWER((6.2138818/13.1094),1.07)/86400 -> 0.03314129316 | G29: 0.05306712963 | H29: =(G29*86400)*POWER((6.2138818/10),1.07)/86400 -> 0.03189510194 | J29: 0.01469907407 | K29: =(J29*86400)*POWER((10/5),1.07)/86400 -> 0.03085972658 | Y29: =COUNT(F29,H29,I29,K29:L29,N29,P29,R29,S29,U29,V29,X29) -> 3 | Z29: =IFERROR(AVERAGE(F29,H29,I29,K29:L29,N29,P29,R29,S29,U29,V29,X29),"No race run") -> 0.03196537389 | AA29: =IF(COUNT(F29,H29,I29,K29:L29,N29,P29,R29,#REF!,U29)>5,5,COUNT(F29,H29,I29,K29:L29,N29,P29,R29,#REF!,U29)) -> 3 | AB29: =IFERROR(IF(Y29>5,AVERAGE(SMALL((F29,H29,I29,K29:L29,N29,P29,R29,S29,U29,V29,X29),{1,2,3,4,5})),Z29),"No race run") -> 0.03196537389
B30: Kelly | C30: Graeme | D30: M | E30: 0.07123842593 | F30: =(E30*86400)*POWER((6.2138818/13.1094),1.07)/86400 -> 0.03204786479 | Y30: =COUNT(F30,H30,I30,K30:L30,N30,P30,R30,S30,U30,V30,X30) -> 1 | Z30: =IFERROR(AVERAGE(F30,H30,I30,K30:L30,N30,P30,R30,S30,U30,V30,X30),"No race run") -> 0.03204786479 | AA30: =IF(COUNT(F30,H30,I30,K30:L30,N30,P30,R30,#REF!,U30)>5,5,COUNT(F30,H30,I30,K30:L30,N30,P30,R30,#REF!,U30)) -> 1 | AB30: =IFERROR(IF(Y30>5,AVERAGE(SMALL((F30,H30,I30,K30:L30,N30,P30,R30,S30,U30,V30,X30),{1,2,3,4,5})),Z30),"No race run") -> 0.03204786479
B31: Pool | C31: Richard | D31: M | I31: 0.03363425926 | O31: 0.02017361111 | P31: =(O31*86400)*POWER((6.2138818/3.9),1.07)/86400 -> 0.03320801466 | Y31: =COUNT(F31,H31,I31,K31:L31,N31,P31,R31,S31,U31,V31,X31) -> 2 | Z31: =IFERROR(AVERAGE(F31,H31,I31,K31:L31,N31,P31,R31,S31,U31,V31,X31),"No race run") -> 0.03342113696 | AA31: =IF(COUNT(F31,H31,I31,K31:L31,N31,P31,R31,#REF!,U31)>5,5,COUNT(F31,H31,I31,K31:L31,N31,P31,R31,#REF!,U31)) -> 2 | AB31: =IFERROR(IF(Y31>5,AVERAGE(SMALL((F31,H31,I31,K31:L31,N31,P31,R31,S31,U31,V31,X31),{1,2,3,4,5})),Z31),"No race run") -> 0.03342113696
B32: Reith | C32: Kevin | D32: M | E32: 0.07496527778 | F32: =(E32*86400)*POWER((6.2138818/13.1094),1.07)/86400 -> 0.03372445496 | O32: 0.02023148148 | P32: =(O32*86400)*POWER((6.2138818/3.9),1.07)/86400 -> 0.03330327575 | Y32: =COUNT(F32,H32,I32,K32:L32,N32,P32,R32,S32,U32,V32,X32) -> 2 | Z32: =IFERROR(AVERAGE(F32,H32,I32,K32:L32,N32,P32,R32,S32,U32,V32,X32),"No race run") -> 0.03351386535 | AA32: =IF(COUNT(F32,H32,I32,K32:L32,N32,P32,R32,#REF!,U32)>5,5,COUNT(F32,H32,I32,K32:L32,N32,P32,R32,#REF!,U32)) -> 2 | AB32: =IFERROR(IF(Y32>5,AVERAGE(SMALL((F32,H32,I32,K32:L32,N32,P32,R32,S32,U32,V32,X32),{1,2,3,4,5})),Z32),"No race run") -> 0.03351386535
B33: Coutts | C33: Pippa | D33: F | I33: 0.03358796296 | Y33: =COUNT(F33,H33,I33,K33:L33,N33,P33,R33,S33,U33,V33,X33) -> 1 | Z33: =IFERROR(AVERAGE(F33,H33,I33,K33:L33,N33,P33,R33,S33,U33,V33,X33),"No race run") -> 0.03358796296 | AA33: =IF(COUNT(F33,H33,I33,K33:L33,N33,P33,R33,#REF!,U33)>5,5,COUNT(F33,H33,I33,K33:L33,N33,P33,R33,#REF!,U33)) -> 1 | AB33: =IFERROR(IF(Y33>5,AVERAGE(SMALL((F33,H33,I33,K33:L33,N33,P33,R33,S33,U33,V33,X33),{1,2,3,4,5})),Z33),"No race run") -> 0.03358796296
B34: Reilly | C34: Jim | D34: M | J34: 0.01581018519 | K34: =(J34*86400)*POWER((10/5),1.07)/86400 -> 0.03319243032 | L34: 0.03530092593 | M34: 0.02560185185 | N34: =(M34*86400)*POWER((6.2138818/5),1.07)/86400 -> 0.03230515823 | Y34: =COUNT(F34,H34,I34,K34:L34,N34,P34,R34,S34,U34,V34,X34) -> 3 | Z34: =IFERROR(AVERAGE(F34,H34,I34,K34:L34,N34,P34,R34,S34,U34,V34,X34),"No race run") -> 0.03359950483 | AA34: =IF(COUNT(F34,H34,I34,K34:L34,N34,P34,R34,#REF!,U34)>5,5,COUNT(F34,H34,I34,K34:L34,N34,P34,R34,#REF!,U34)) -> 3 | AB34: =IFERROR(IF(Y34>5,AVERAGE(SMALL((F34,H34,I34,K34:L34,N34,P34,R34,S34,U34,V34,X34),{1,2,3,4,5})),Z34),"No race run") -> 0.03359950483
B35: Muncey | C35: Laura | D35: F | E35: 0.07695601852 | F35: =(E35*86400)*POWER((6.2138818/13.1094),1.07)/86400 -> 0.03462002486 | G35: 0.05612268519 | H35: =(G35*86400)*POWER((6.2138818/10),1.07)/86400 -> 0.033731592 | M35: 0.02623842593 | N35: =(M35*86400)*POWER((6.2138818/5),1.07)/86400 -> 0.03310840584 | Q35: 0.07491898148 | R35: =(Q35*86400)*POWER((6.2138818/13.1094),1.07)/86400 -> 0.03370362775 | Y35: =COUNT(F35,H35,I35,K35:L35,N35,P35,R35,S35,U35,V35,X35) -> 4 | Z35: =IFERROR(AVERAGE(F35,H35,I35,K35:L35,N35,P35,R35,S35,U35,V35,X35),"No race run") -> 0.03379091261 | AA35: =IF(COUNT(F35,H35,I35,K35:L35,N35,P35,R35,#REF!,U35)>5,5,COUNT(F35,H35,I35,K35:L35,N35,P35,R35,#REF!,U35)) -> 4 | AB35: =IFERROR(IF(Y35>5,AVERAGE(SMALL((F35,H35,I35,K35:L35,N35,P35,R35,S35,U35,V35,X35),{1,2,3,4,5})),Z35),"No race run") -> 0.03379091261
B36: McBride | C36: Katy | D36: F | E36: 0.07819444444 | F36: =(E36*86400)*POWER((6.2138818/13.1094),1.07)/86400 -> 0.03517715265 | I36: 0.03353009259 | J36: 0.01605324074 | K36: =(J36*86400)*POWER((10/5),1.07)/86400 -> 0.03370270926 | Y36: =COUNT(F36,H36,I36,K36:L36,N36,P36,R36,S36,U36,V36,X36) -> 3 | Z36: =IFERROR(AVERAGE(F36,H36,I36,K36:L36,N36,P36,R36,S36,U36,V36,X36),"No race run") -> 0.0341366515 | AA36: =IF(COUNT(F36,H36,I36,K36:L36,N36,P36,R36,#REF!,U36)>5,5,COUNT(F36,H36,I36,K36:L36,N36,P36,R36,#REF!,U36)) -> 3 | AB36: =IFERROR(IF(Y36>5,AVERAGE(SMALL((F36,H36,I36,K36:L36,N36,P36,R36,S36,U36,V36,X36),{1,2,3,4,5})),Z36),"No race run") -> 0.0341366515
B37: Baughan | C37: Paul | D37: M | I37: 0.03456018519 | Y37: =COUNT(F37,H37,I37,K37:L37,N37,P37,R37,S37,U37,V37,X37) -> 1 | Z37: =IFERROR(AVERAGE(F37,H37,I37,K37:L37,N37,P37,R37,S37,U37,V37,X37),"No race run") -> 0.03456018519 | AA37: =IF(COUNT(F37,H37,I37,K37:L37,N37,P37,R37,#REF!,U37)>5,5,COUNT(F37,H37,I37,K37:L37,N37,P37,R37,#REF!,U37)) -> 1 | AB37: =IFERROR(IF(Y37>5,AVERAGE(SMALL((F37,H37,I37,K37:L37,N37,P37,R37,S37,U37,V37,X37),{1,2,3,4,5})),Z37),"No race run") -> 0.03456018519
B38: Dobson | C38: Stuart | D38: M | G38: 0.05784722222 | H38: =(G38*86400)*POWER((6.2138818/10),1.07)/86400 -> 0.03476809586 | L38: 0.03524305556 | M38: 0.02767361111 | N38: =(M38*86400)*POWER((6.2138818/5),1.07)/86400 -> 0.03491936407 | O38: 0.02084490741 | P38: =(O38*86400)*POWER((6.2138818/3.9),1.07)/86400 -> 0.03431304326 | Y38: =COUNT(F38,H38,I38,K38:L38,N38,P38,R38,S38,U38,V38,X38) -> 4 | Z38: =IFERROR(AVERAGE(F38,H38,I38,K38:L38,N38,P38,R38,S38,U38,V38,X38),"No race run") -> 0.03481088969 | AA38: =IF(COUNT(F38,H38,I38,K38:L38,N38,P38,R38,#REF!,U38)>5,5,COUNT(F38,H38,I38,K38:L38,N38,P38,R38,#REF!,U38)) -> 4 | AB38: =IFERROR(IF(Y38>5,AVERAGE(SMALL((F38,H38,I38,K38:L38,N38,P38,R38,S38,U38,V38,X38),{1,2,3,4,5})),Z38),"No race run") -> 0.03481088969
B39: Gray | C39: Duncan | D39: M | G39: 0.06162037037 | H39: =(G39*86400)*POWER((6.2138818/10),1.07)/86400 -> 0.03703588282 | I39: 0.03510416667 | J39: 0.016875 | K39: =(J39*86400)*POWER((10/5),1.07)/86400 -> 0.03542793807 | L39: 0.03520833333 | O39: 0.02032407407 | P39: =(O39*86400)*POWER((6.2138818/3.9),1.07)/86400 -> 0.03345569349 | Y39: =COUNT(F39,H39,I39,K39:L39,N39,P39,R39,S39,U39,V39,X39) -> 5 | Z39: =IFERROR(AVERAGE(F39,H39,I39,K39:L39,N39,P39,R39,S39,U39,V39,X39),"No race run") -> 0.03524640288 | AA39: =IF(COUNT(F39,H39,I39,K39:L39,N39,P39,R39,#REF!,U39)>5,5,COUNT(F39,H39,I39,K39:L39,N39,P39,R39,#REF!,U39)) -> 5 | AB39: =IFERROR(IF(Y39>5,AVERAGE(SMALL((F39,H39,I39,K39:L39,N39,P39,R39,S39,U39,V39,X39),{1,2,3,4,5})),Z39),"No race run") -> 0.03524640288
B40: Wilson | C40: Anne | D40: F | I40: 0.0352662037 | O40: 0.02150462963 | P40: =(O40*86400)*POWER((6.2138818/3.9),1.07)/86400 -> 0.03539901965 | Y40: =COUNT(F40,H40,I40,K40:L40,N40,P40,R40,S40,U40,V40,X40) -> 2 | Z40: =IFERROR(AVERAGE(F40,H40,I40,K40:L40,N40,P40,R40,S40,U40,V40,X40),"No race run") -> 0.03533261168 | AA40: =IF(COUNT(F40,H40,I40,K40:L40,N40,P40,R40,#REF!,U40)>5,5,COUNT(F40,H40,I40,K40:L40,N40,P40,R40,#REF!,U40)) -> 2 | AB40: =IFERROR(IF(Y40>5,AVERAGE(SMALL((F40,H40,I40,K40:L40,N40,P40,R40,S40,U40,V40,X40),{1,2,3,4,5})),Z40),"No race run") -> 0.03533261168
B41: Bilton | C41: Geoff | D41: M | I41: 0.03600694444 | J41: 0.01690972222 | K41: =(J41*86400)*POWER((10/5),1.07)/86400 -> 0.03550083506 | O41: 0.02173611111 | P41: =(O41*86400)*POWER((6.2138818/3.9),1.07)/86400 -> 0.03578006399 | Y41: =COUNT(F41,H41,I41,K41:L41,N41,P41,R41,S41,U41,V41,X41) -> 3 | Z41: =IFERROR(AVERAGE(F41,H41,I41,K41:L41,N41,P41,R41,S41,U41,V41,X41),"No race run") -> 0.0357626145 | AA41: =IF(COUNT(F41,H41,I41,K41:L41,N41,P41,R41,#REF!,U41)>5,5,COUNT(F41,H41,I41,K41:L41,N41,P41,R41,#REF!,U41)) -> 3 | AB41: =IFERROR(IF(Y41>5,AVERAGE(SMALL((F41,H41,I41,K41:L41,N41,P41,R41,S41,U41,V41,X41),{1,2,3,4,5})),Z41),"No race run") -> 0.0357626145
B42: Beveridge | C42: Lynn | D42: F | E42: 0.08319444444 | F42: =(E42*86400)*POWER((6.2138818/13.1094),1.07)/86400 -> 0.037426491 | I42: 0.03599537037 | J42: 0.0172337963 | K42: =(J42*86400)*POWER((10/5),1.07)/86400 -> 0.03618120699 | L42: 0.03780092593 | M42: 0.02793981481 | N42: =(M42*86400)*POWER((6.2138818/5),1.07)/86400 -> 0.03525526762 | O42: 0.02170138889 | P42: =(O42*86400)*POWER((6.2138818/3.9),1.07)/86400 -> 0.03572290734 | Y42: =COUNT(F42,H42,I42,K42:L42,N42,P42,R42,S42,U42,V42,X42) -> 6 | Z42: =IFERROR(AVERAGE(F42,H42,I42,K42:L42,N42,P42,R42,S42,U42,V42,X42),"No race run") -> 0.03639702821 | AA42: =IF(COUNT(F42,H42,I42,K42:L42,N42,P42,R42,#REF!,U42)>5,5,COUNT(F42,H42,I42,K42:L42,N42,P42,R42,#REF!,U42)) -> 5 | AB42: =IFERROR(IF(Y42>5,AVERAGE(SMALL((F42,H42,I42,K42:L42,N42,P42,R42,S42,U42,V42,X42),{1,2,3,4,5})),Z42),"No race run") -> 0.03611624866
B43: Hunter | C43: Neil | D43: M | I43: 0.03633101852 | M43: 0.02853009259 | N43: =(M43*86400)*POWER((6.2138818/5),1.07)/86400 -> 0.03600009721 | Y43: =COUNT(F43,H43,I43,K43:L43,N43,P43,R43,S43,U43,V43,X43) -> 2 | Z43: =IFERROR(AVERAGE(F43,H43,I43,K43:L43,N43,P43,R43,S43,U43,V43,X43),"No race run") -> 0.03616555787 | AA43: =IF(COUNT(F43,H43,I43,K43:L43,N43,P43,R43,#REF!,U43)>5,5,COUNT(F43,H43,I43,K43:L43,N43,P43,R43,#REF!,U43)) -> 2 | AB43: =IFERROR(IF(Y43>5,AVERAGE(SMALL((F43,H43,I43,K43:L43,N43,P43,R43,S43,U43,V43,X43),{1,2,3,4,5})),Z43),"No race run") -> 0.03616555787
B44: Findlay | C44: Valerie | D44: F | G44: 0.061875 | H44: =(G44*86400)*POWER((6.2138818/10),1.07)/86400 -> 0.03718892366 | I44: 0.03591435185 | J44: 0.01726851852 | K44: =(J44*86400)*POWER((10/5),1.07)/86400 -> 0.03625410398 | M44: 0.0281712963 | N44: =(M44*86400)*POWER((6.2138818/5),1.07)/86400 -> 0.03554735765 | Y44: =COUNT(F44,H44,I44,K44:L44,N44,P44,R44,S44,U44,V44,X44) -> 4 | Z44: =IFERROR(AVERAGE(F44,H44,I44,K44:L44,N44,P44,R44,S44,U44,V44,X44),"No race run") -> 0.03622618429 | AA44: =IF(COUNT(F44,H44,I44,K44:L44,N44,P44,R44,#REF!,U44)>5,5,COUNT(F44,H44,I44,K44:L44,N44,P44,R44,#REF!,U44)) -> 4 | AB44: =IFERROR(IF(Y44>5,AVERAGE(SMALL((F44,H44,I44,K44:L44,N44,P44,R44,S44,U44,V44,X44),{1,2,3,4,5})),Z44),"No race run") -> 0.03622618429
B45: Grieve | C45: Wendy | D45: F | E45: 0.08144675926 | F45: =(E45*86400)*POWER((6.2138818/13.1094),1.07)/86400 -> 0.03664026394 | G45: 0.06034722222 | H45: =(G45*86400)*POWER((6.2138818/10),1.07)/86400 -> 0.03627067863 | Y45: =COUNT(F45,H45,I45,K45:L45,N45,P45,R45,S45,U45,V45,X45) -> 2 | Z45: =IFERROR(AVERAGE(F45,H45,I45,K45:L45,N45,P45,R45,S45,U45,V45,X45),"No race run") -> 0.03645547129 | AA45: =IF(COUNT(F45,H45,I45,K45:L45,N45,P45,R45,#REF!,U45)>5,5,COUNT(F45,H45,I45,K45:L45,N45,P45,R45,#REF!,U45)) -> 2 | AB45: =IFERROR(IF(Y45>5,AVERAGE(SMALL((F45,H45,I45,K45:L45,N45,P45,R45,S45,U45,V45,X45),{1,2,3,4,5})),Z45),"No race run") -> 0.03645547129
B46: Verdot | C46: Leigh | D46: F | E46: 0.08175925926 | F46: =(E46*86400)*POWER((6.2138818/13.1094),1.07)/86400 -> 0.03678084759 | G46: 0.06010416667 | H46: =(G46*86400)*POWER((6.2138818/10),1.07)/86400 -> 0.03612459419 | I46: 0.03563657407 | L46: 0.03842592593 | O46: 0.02158564815 | P46: =(O46*86400)*POWER((6.2138818/3.9),1.07)/86400 -> 0.03553238517 | Q46: 0.08605324074 | R46: =(Q46*86400)*POWER((6.2138818/13.1094),1.07)/86400 -> 0.03871257104 | Y46: =COUNT(F46,H46,I46,K46:L46,N46,P46,R46,S46,U46,V46,X46) -> 6 | Z46: =IFERROR(AVERAGE(F46,H46,I46,K46:L46,N46,P46,R46,S46,U46,V46,X46),"No race run") -> 0.03686881633 | AA46: =IF(COUNT(F46,H46,I46,K46:L46,N46,P46,R46,#REF!,U46)>5,5,COUNT(F46,H46,I46,K46:L46,N46,P46,R46,#REF!,U46)) -> 5 | AB46: =IFERROR(IF(Y46>5,AVERAGE(SMALL((F46,H46,I46,K46:L46,N46,P46,R46,S46,U46,V46,X46),{1,2,3,4,5})),Z46),"No race run") -> 0.03650006539
B47: Blyth | C47: Scott | D47: M | L47: 0.03700231481 | O47: 0.02210648148 | P47: =(O47*86400)*POWER((6.2138818/3.9),1.07)/86400 -> 0.03638973494 | Y47: =COUNT(F47,H47,I47,K47:L47,N47,P47,R47,S47,U47,V47,X47) -> 2 | Z47: =IFERROR(AVERAGE(F47,H47,I47,K47:L47,N47,P47,R47,S47,U47,V47,X47),"No race run") -> 0.03669602488 | AA47: =IF(COUNT(F47,H47,I47,K47:L47,N47,P47,R47,#REF!,U47)>5,5,COUNT(F47,H47,I47,K47:L47,N47,P47,R47,#REF!,U47)) -> 2 | AB47: =IFERROR(IF(Y47>5,AVERAGE(SMALL((F47,H47,I47,K47:L47,N47,P47,R47,S47,U47,V47,X47),{1,2,3,4,5})),Z47),"No race run") -> 0.03669602488
B48: Jackson | C48: Andrea | D48: F | I48: 0.03672453704 | Y48: =COUNT(F48,H48,I48,K48:L48,N48,P48,R48,S48,U48,V48,X48) -> 1 | Z48: =IFERROR(AVERAGE(F48,H48,I48,K48:L48,N48,P48,R48,S48,U48,V48,X48),"No race run") -> 0.03672453704 | AA48: =IF(COUNT(F48,H48,I48,K48:L48,N48,P48,R48,#REF!,U48)>5,5,COUNT(F48,H48,I48,K48:L48,N48,P48,R48,#REF!,U48)) -> 1 | AB48: =IFERROR(IF(Y48>5,AVERAGE(SMALL((F48,H48,I48,K48:L48,N48,P48,R48,S48,U48,V48,X48),{1,2,3,4,5})),Z48),"No race run") -> 0.03672453704
B49: Rose | C49: Julie | D49: F | E49: 0.08039351852 | F49: =(E49*86400)*POWER((6.2138818/13.1094),1.07)/86400 -> 0.03616644498 | O49: 0.02273148148 | P49: =(O49*86400)*POWER((6.2138818/3.9),1.07)/86400 -> 0.03741855468 | Y49: =COUNT(F49,H49,I49,K49:L49,N49,P49,R49,S49,U49,V49,X49) -> 2 | Z49: =IFERROR(AVERAGE(F49,H49,I49,K49:L49,N49,P49,R49,S49,U49,V49,X49),"No race run") -> 0.03679249983 | AA49: =IF(COUNT(F49,H49,I49,K49:L49,N49,P49,R49,#REF!,U49)>5,5,COUNT(F49,H49,I49,K49:L49,N49,P49,R49,#REF!,U49)) -> 2 | AB49: =IFERROR(IF(Y49>5,AVERAGE(SMALL((F49,H49,I49,K49:L49,N49,P49,R49,S49,U49,V49,X49),{1,2,3,4,5})),Z49),"No race run") -> 0.03679249983
B50: Kemp | C50: Gillian | D50: F | L50: 0.03770833333 | O50: 0.02185185185 | P50: =(O50*86400)*POWER((6.2138818/3.9),1.07)/86400 -> 0.03597058616 | Y50: =COUNT(F50,H50,I50,K50:L50,N50,P50,R50,S50,U50,V50,X50) -> 2 | Z50: =IFERROR(AVERAGE(F50,H50,I50,K50:L50,N50,P50,R50,S50,U50,V50,X50),"No race run") -> 0.03683945975 | AA50: =IF(COUNT(F50,H50,I50,K50:L50,N50,P50,R50,#REF!,U50)>5,5,COUNT(F50,H50,I50,K50:L50,N50,P50,R50,#REF!,U50)) -> 2 | AB50: =IFERROR(IF(Y50>5,AVERAGE(SMALL((F50,H50,I50,K50:L50,N50,P50,R50,S50,U50,V50,X50),{1,2,3,4,5})),Z50),"No race run") -> 0.03683945975
B51: Lopez | C51: Gill | D51: F | I51: 0.03538194444 | M51: 0.03107638889 | N51: =(M51*86400)*POWER((6.2138818/5),1.07)/86400 -> 0.03921308763 | Y51: =COUNT(F51,H51,I51,K51:L51,N51,P51,R51,S51,U51,V51,X51) -> 2 | Z51: =IFERROR(AVERAGE(F51,H51,I51,K51:L51,N51,P51,R51,S51,U51,V51,X51),"No race run") -> 0.03729751604 | AA51: =IF(COUNT(F51,H51,I51,K51:L51,N51,P51,R51,#REF!,U51)>5,5,COUNT(F51,H51,I51,K51:L51,N51,P51,R51,#REF!,U51)) -> 2 | AB51: =IFERROR(IF(Y51>5,AVERAGE(SMALL((F51,H51,I51,K51:L51,N51,P51,R51,S51,U51,V51,X51),{1,2,3,4,5})),Z51),"No race run") -> 0.03729751604
B52: Mackay | C52: Duncan | D52: M | E52: 0.08854166667 | F52: =(E52*86400)*POWER((6.2138818/13.1094),1.07)/86400 -> 0.03983203341 | G52: 0.06230324074 | H52: =(G52*86400)*POWER((6.2138818/10),1.07)/86400 -> 0.03744631052 | O52: 0.02105324074 | P52: =(O52*86400)*POWER((6.2138818/3.9),1.07)/86400 -> 0.03465598317 | Y52: =COUNT(F52,H52,I52,K52:L52,N52,P52,R52,S52,U52,V52,X52) -> 3 | Z52: =IFERROR(AVERAGE(F52,H52,I52,K52:L52,N52,P52,R52,S52,U52,V52,X52),"No race run") -> 0.03731144237 | AA52: =IF(COUNT(F52,H52,I52,K52:L52,N52,P52,R52,#REF!,U52)>5,5,COUNT(F52,H52,I52,K52:L52,N52,P52,R52,#REF!,U52)) -> 3 | AB52: =IFERROR(IF(Y52>5,AVERAGE(SMALL((F52,H52,I52,K52:L52,N52,P52,R52,S52,U52,V52,X52),{1,2,3,4,5})),Z52),"No race run") -> 0.03731144237
B53: Malcolm | C53: Ann | D53: F | G53: 0.06267361111 | H53: =(G53*86400)*POWER((6.2138818/10),1.07)/86400 -> 0.03766891538 | I53: 0.03770833333 | Y53: =COUNT(F53,H53,I53,K53:L53,N53,P53,R53,S53,U53,V53,X53) -> 2 | Z53: =IFERROR(AVERAGE(F53,H53,I53,K53:L53,N53,P53,R53,S53,U53,V53,X53),"No race run") -> 0.03768862436 | AA53: =IF(COUNT(F53,H53,I53,K53:L53,N53,P53,R53,#REF!,U53)>5,5,COUNT(F53,H53,I53,K53:L53,N53,P53,R53,#REF!,U53)) -> 2 | AB53: =IFERROR(IF(Y53>5,AVERAGE(SMALL((F53,H53,I53,K53:L53,N53,P53,R53,S53,U53,V53,X53),{1,2,3,4,5})),Z53),"No race run") -> 0.03768862436
B54: Cuthbert | C54: Catriona | D54: F | E54: 0.08509259259 | F54: =(E54*86400)*POWER((6.2138818/13.1094),1.07)/86400 -> 0.03828040649 | Y54: =COUNT(F54,H54,I54,K54:L54,N54,P54,R54,S54,U54,V54,X54) -> 1 | Z54: =IFERROR(AVERAGE(F54,H54,I54,K54:L54,N54,P54,R54,S54,U54,V54,X54),"No race run") -> 0.03828040649 | AA54: =IF(COUNT(F54,H54,I54,K54:L54,N54,P54,R54,#REF!,U54)>5,5,COUNT(F54,H54,I54,K54:L54,N54,P54,R54,#REF!,U54)) -> 1 | AB54: =IFERROR(IF(Y54>5,AVERAGE(SMALL((F54,H54,I54,K54:L54,N54,P54,R54,S54,U54,V54,X54),{1,2,3,4,5})),Z54),"No race run") -> 0.03828040649
B55: Smith | C55: Alison | D55: F | E55: 0.0866087963 | F55: =(E55*86400)*POWER((6.2138818/13.1094),1.07)/86400 -> 0.03896249752 | G55: 0.06322916667 | H55: =(G55*86400)*POWER((6.2138818/10),1.07)/86400 -> 0.03800282266 | I55: 0.03855324074 | J55: 0.01836805556 | K55: =(J55*86400)*POWER((10/5),1.07)/86400 -> 0.03856250872 | L55: 0.0381712963 | O55: 0.02498842593 | P55: =(O55*86400)*POWER((6.2138818/3.9),1.07)/86400 -> 0.04113373704 | Y55: =COUNT(F55,H55,I55,K55:L55,N55,P55,R55,S55,U55,V55,X55) -> 6 | Z55: =IFERROR(AVERAGE(F55,H55,I55,K55:L55,N55,P55,R55,S55,U55,V55,X55),"No race run") -> 0.03889768383 | AA55: =IF(COUNT(F55,H55,I55,K55:L55,N55,P55,R55,#REF!,U55)>5,5,COUNT(F55,H55,I55,K55:L55,N55,P55,R55,#REF!,U55)) -> 5 | AB55: =IFERROR(IF(Y55>5,AVERAGE(SMALL((F55,H55,I55,K55:L55,N55,P55,R55,S55,U55,V55,X55),{1,2,3,4,5})),Z55),"No race run") -> 0.03845047319
B56: Aird | C56: Andrew | D56: M | G56: 0.06872685185 | H56: =(G56*86400)*POWER((6.2138818/10),1.07)/86400 -> 0.04130711348 | I56: 0.04032407407 | J56: 0.01804398148 | K56: =(J56*86400)*POWER((10/5),1.07)/86400 -> 0.0378821368 | M56: 0.02856481481 | N56: =(M56*86400)*POWER((6.2138818/5),1.07)/86400 -> 0.03604391072 | O56: 0.02295138889 | P56: =(O56*86400)*POWER((6.2138818/3.9),1.07)/86400 -> 0.0377805468 | Y56: =COUNT(F56,H56,I56,K56:L56,N56,P56,R56,S56,U56,V56,X56) -> 5 | Z56: =IFERROR(AVERAGE(F56,H56,I56,K56:L56,N56,P56,R56,S56,U56,V56,X56),"No race run") -> 0.03866755638 | AA56: =IF(COUNT(F56,H56,I56,K56:L56,N56,P56,R56,#REF!,U56)>5,5,COUNT(F56,H56,I56,K56:L56,N56,P56,R56,#REF!,U56)) -> 5 | AB56: =IFERROR(IF(Y56>5,AVERAGE(SMALL((F56,H56,I56,K56:L56,N56,P56,R56,S56,U56,V56,X56),{1,2,3,4,5})),Z56),"No race run") -> 0.03866755638
B57: McLean | C57: Susan | D57: F | J57: 0.01835648148 | K57: =(J57*86400)*POWER((10/5),1.07)/86400 -> 0.03853820973 | M57: 0.03097222222 | N57: =(M57*86400)*POWER((6.2138818/5),1.07)/86400 -> 0.03908164712 | O57: 0.02421296296 | P57: =(O57*86400)*POWER((6.2138818/3.9),1.07)/86400 -> 0.03985723848 | Y57: =COUNT(F57,H57,I57,K57:L57,N57,P57,R57,S57,U57,V57,X57) -> 3 | Z57: =IFERROR(AVERAGE(F57,H57,I57,K57:L57,N57,P57,R57,S57,U57,V57,X57),"No race run") -> 0.03915903178 | AA57: =IF(COUNT(F57,H57,I57,K57:L57,N57,P57,R57,#REF!,U57)>5,5,COUNT(F57,H57,I57,K57:L57,N57,P57,R57,#REF!,U57)) -> 3 | AB57: =IFERROR(IF(Y57>5,AVERAGE(SMALL((F57,H57,I57,K57:L57,N57,P57,R57,S57,U57,V57,X57),{1,2,3,4,5})),Z57),"No race run") -> 0.03915903178
B58: Smith | C58: Natalie | D58: F | I58: 0.03929398148 | Y58: =COUNT(F58,H58,I58,K58:L58,N58,P58,R58,S58,U58,V58,X58) -> 1 | Z58: =IFERROR(AVERAGE(F58,H58,I58,K58:L58,N58,P58,R58,S58,U58,V58,X58),"No race run") -> 0.03929398148 | AA58: =IF(COUNT(F58,H58,I58,K58:L58,N58,P58,R58,#REF!,U58)>5,5,COUNT(F58,H58,I58,K58:L58,N58,P58,R58,#REF!,U58)) -> 1 | AB58: =IFERROR(IF(Y58>5,AVERAGE(SMALL((F58,H58,I58,K58:L58,N58,P58,R58,S58,U58,V58,X58),{1,2,3,4,5})),Z58),"No race run") -> 0.03929398148
B59: Houston | C59: Alison | D59: F | G59: 0.06508101852 | H59: =(G59*86400)*POWER((6.2138818/10),1.07)/86400 -> 0.03911584694 | L59: 0.03923611111 | M59: 0.03063657407 | N59: =(M59*86400)*POWER((6.2138818/5),1.07)/86400 -> 0.03865811656 | O59: 0.02454861111 | P59: =(O59*86400)*POWER((6.2138818/3.9),1.07)/86400 -> 0.04040975278 | Y59: =COUNT(F59,H59,I59,K59:L59,N59,P59,R59,S59,U59,V59,X59) -> 4 | Z59: =IFERROR(AVERAGE(F59,H59,I59,K59:L59,N59,P59,R59,S59,U59,V59,X59),"No race run") -> 0.03935495685 | AA59: =IF(COUNT(F59,H59,I59,K59:L59,N59,P59,R59,#REF!,U59)>5,5,COUNT(F59,H59,I59,K59:L59,N59,P59,R59,#REF!,U59)) -> 4 | AB59: =IFERROR(IF(Y59>5,AVERAGE(SMALL((F59,H59,I59,K59:L59,N59,P59,R59,S59,U59,V59,X59),{1,2,3,4,5})),Z59),"No race run") -> 0.03935495685
B60: Lopez | C60: Hannah | D60: F | M60: 0.03107638889 | N60: =(M60*86400)*POWER((6.2138818/5),1.07)/86400 -> 0.03921308763 | O60: 0.02402777778 | P60: =(O60*86400)*POWER((6.2138818/3.9),1.07)/86400 -> 0.03955240301 | Y60: =COUNT(F60,H60,I60,K60:L60,N60,P60,R60,S60,U60,V60,X60) -> 2 | Z60: =IFERROR(AVERAGE(F60,H60,I60,K60:L60,N60,P60,R60,S60,U60,V60,X60),"No race run") -> 0.03938274532 | AA60: =IF(COUNT(F60,H60,I60,K60:L60,N60,P60,R60,#REF!,U60)>5,5,COUNT(F60,H60,I60,K60:L60,N60,P60,R60,#REF!,U60)) -> 2 | AB60: =IFERROR(IF(Y60>5,AVERAGE(SMALL((F60,H60,I60,K60:L60,N60,P60,R60,S60,U60,V60,X60),{1,2,3,4,5})),Z60),"No race run") -> 0.03938274532
B61: Macintyre | C61: Anne | D61: F | G61: 0.06701388889 | H61: =(G61*86400)*POWER((6.2138818/10),1.07)/86400 -> 0.04027756603 | I61: 0.0390625 | L61: 0.03956018519 | O61: 0.02436342593 | P61: =(O61*86400)*POWER((6.2138818/3.9),1.07)/86400 -> 0.04010491731 | Y61: =COUNT(F61,H61,I61,K61:L61,N61,P61,R61,S61,U61,V61,X61) -> 4 | Z61: =IFERROR(AVERAGE(F61,H61,I61,K61:L61,N61,P61,R61,S61,U61,V61,X61),"No race run") -> 0.03975129213 | AA61: =IF(COUNT(F61,H61,I61,K61:L61,N61,P61,R61,#REF!,U61)>5,5,COUNT(F61,H61,I61,K61:L61,N61,P61,R61,#REF!,U61)) -> 4 | AB61: =IFERROR(IF(Y61>5,AVERAGE(SMALL((F61,H61,I61,K61:L61,N61,P61,R61,S61,U61,V61,X61),{1,2,3,4,5})),Z61),"No race run") -> 0.03975129213
B62: Mitchell | C62: Karen | D62: F | G62: 0.06702546296 | H62: =(G62*86400)*POWER((6.2138818/10),1.07)/86400 -> 0.04028452243 | I62: 0.03789351852 | Q62: 0.09288194444 | R62: =(Q62*86400)*POWER((6.2138818/13.1094),1.07)/86400 -> 0.04178458407 | Y62: =COUNT(F62,H62,I62,K62:L62,N62,P62,R62,S62,U62,V62,X62) -> 3 | Z62: =IFERROR(AVERAGE(F62,H62,I62,K62:L62,N62,P62,R62,S62,U62,V62,X62),"No race run") -> 0.03998754167 | AA62: =IF(COUNT(F62,H62,I62,K62:L62,N62,P62,R62,#REF!,U62)>5,5,COUNT(F62,H62,I62,K62:L62,N62,P62,R62,#REF!,U62)) -> 3 | AB62: =IFERROR(IF(Y62>5,AVERAGE(SMALL((F62,H62,I62,K62:L62,N62,P62,R62,S62,U62,V62,X62),{1,2,3,4,5})),Z62),"No race run") -> 0.03998754167
B63: Rennie | C63: Amanda | D63: F | O63: 0.02436342593 | P63: =(O63*86400)*POWER((6.2138818/3.9),1.07)/86400 -> 0.04010491731 | Y63: =COUNT(F63,H63,I63,K63:L63,N63,P63,R63,S63,U63,V63,X63) -> 1 | Z63: =IFERROR(AVERAGE(F63,H63,I63,K63:L63,N63,P63,R63,S63,U63,V63,X63),"No race run") -> 0.04010491731 | AA63: =IF(COUNT(F63,H63,I63,K63:L63,N63,P63,R63,#REF!,U63)>5,5,COUNT(F63,H63,I63,K63:L63,N63,P63,R63,#REF!,U63)) -> 1 | AB63: =IFERROR(IF(Y63>5,AVERAGE(SMALL((F63,H63,I63,K63:L63,N63,P63,R63,S63,U63,V63,X63),{1,2,3,4,5})),Z63),"No race run") -> 0.04010491731
B64: Robertson | C64: Alison | D64: F | I64: 0.04046296296 | Y64: =COUNT(F64,H64,I64,K64:L64,N64,P64,R64,S64,U64,V64,X64) -> 1 | Z64: =IFERROR(AVERAGE(F64,H64,I64,K64:L64,N64,P64,R64,S64,U64,V64,X64),"No race run") -> 0.04046296296 | AA64: =IF(COUNT(F64,H64,I64,K64:L64,N64,P64,R64,#REF!,U64)>5,5,COUNT(F64,H64,I64,K64:L64,N64,P64,R64,#REF!,U64)) -> 1 | AB64: =IFERROR(IF(Y64>5,AVERAGE(SMALL((F64,H64,I64,K64:L64,N64,P64,R64,S64,U64,V64,X64),{1,2,3,4,5})),Z64),"No race run") -> 0.04046296296
B65: Mackay | C65: Lindsey | D65: F | E65: 0.0922337963 | F65: =(E65*86400)*POWER((6.2138818/13.1094),1.07)/86400 -> 0.04149300317 | G65: 0.06653935185 | H65: =(G65*86400)*POWER((6.2138818/10),1.07)/86400 -> 0.03999235356 | Y65: =COUNT(F65,H65,I65,K65:L65,N65,P65,R65,S65,U65,V65,X65) -> 2 | Z65: =IFERROR(AVERAGE(F65,H65,I65,K65:L65,N65,P65,R65,S65,U65,V65,X65),"No race run") -> 0.04074267837 | AA65: =IF(COUNT(F65,H65,I65,K65:L65,N65,P65,R65,#REF!,U65)>5,5,COUNT(F65,H65,I65,K65:L65,N65,P65,R65,#REF!,U65)) -> 2 | AB65: =IFERROR(IF(Y65>5,AVERAGE(SMALL((F65,H65,I65,K65:L65,N65,P65,R65,S65,U65,V65,X65),{1,2,3,4,5})),Z65),"No race run") -> 0.04074267837
B66: Woodrow | C66: Andrew | D66: M | E66: 0.08826388889 | F66: =(E66*86400)*POWER((6.2138818/13.1094),1.07)/86400 -> 0.03970707017 | G66: 0.07126157407 | H66: =(G66*86400)*POWER((6.2138818/10),1.07)/86400 -> 0.04283056546 | J66: 0.02050925926 | K66: =(J66*86400)*POWER((10/5),1.07)/86400 -> 0.04305782323 | L66: 0.04456018519 | O66: 0.02511574074 | P66: =(O66*86400)*POWER((6.2138818/3.9),1.07)/86400 -> 0.04134331143 | Y66: =COUNT(F66,H66,I66,K66:L66,N66,P66,R66,S66,U66,V66,X66) -> 5 | Z66: =IFERROR(AVERAGE(F66,H66,I66,K66:L66,N66,P66,R66,S66,U66,V66,X66),"No race run") -> 0.0422997911 | AA66: =IF(COUNT(F66,H66,I66,K66:L66,N66,P66,R66,#REF!,U66)>5,5,COUNT(F66,H66,I66,K66:L66,N66,P66,R66,#REF!,U66)) -> 5 | AB66: =IFERROR(IF(Y66>5,AVERAGE(SMALL((F66,H66,I66,K66:L66,N66,P66,R66,S66,U66,V66,X66),{1,2,3,4,5})),Z66),"No race run") -> 0.0422997911
B67: Donnachie | C67: Gordon | D67: M | E67: 0.1095601852 | F67: =(E67*86400)*POWER((6.2138818/13.1094),1.07)/86400 -> 0.0492875854 | I67: 0.03821759259 | Y67: =COUNT(F67,H67,I67,K67:L67,N67,P67,R67,S67,U67,V67,X67) -> 2 | Z67: =IFERROR(AVERAGE(F67,H67,I67,K67:L67,N67,P67,R67,S67,U67,V67,X67),"No race run") -> 0.043752589 | AA67: =IF(COUNT(F67,H67,I67,K67:L67,N67,P67,R67,#REF!,U67)>5,5,COUNT(F67,H67,I67,K67:L67,N67,P67,R67,#REF!,U67)) -> 2 | AB67: =IFERROR(IF(Y67>5,AVERAGE(SMALL((F67,H67,I67,K67:L67,N67,P67,R67,S67,U67,V67,X67),{1,2,3,4,5})),Z67),"No race run") -> 0.043752589
B68: Eaton | C68: Sarah | D68: F | E68: 0.1010069444 | F68: =(E68*86400)*POWER((6.2138818/13.1094),1.07)/86400 -> 0.0454397589 | G68: 0.07922453704 | H68: =(G68*86400)*POWER((6.2138818/10),1.07)/86400 -> 0.04761656986 | J68: 0.02083333333 | K68: =(J68*86400)*POWER((10/5),1.07)/86400 -> 0.04373819515 | M68: 0.03291666667 | N68: =(M68*86400)*POWER((6.2138818/5),1.07)/86400 -> 0.04153520344 | O68: 0.02563657407 | P68: =(O68*86400)*POWER((6.2138818/3.9),1.07)/86400 -> 0.04220066121 | Y68: =COUNT(F68,H68,I68,K68:L68,N68,P68,R68,S68,U68,V68,X68) -> 5 | Z68: =IFERROR(AVERAGE(F68,H68,I68,K68:L68,N68,P68,R68,S68,U68,V68,X68),"No race run") -> 0.04410607771 | AA68: =IF(COUNT(F68,H68,I68,K68:L68,N68,P68,R68,#REF!,U68)>5,5,COUNT(F68,H68,I68,K68:L68,N68,P68,R68,#REF!,U68)) -> 5 | AB68: =IFERROR(IF(Y68>5,AVERAGE(SMALL((F68,H68,I68,K68:L68,N68,P68,R68,S68,U68,V68,X68),{1,2,3,4,5})),Z68),"No race run") -> 0.04410607771
B69: Stark | C69: Roger | D69: M | J69: 0.021875 | K69: =(J69*86400)*POWER((10/5),1.07)/86400 -> 0.04592510491 | L69: 0.04722222222 | M69: 0.03538194444 | N69: =(M69*86400)*POWER((6.2138818/5),1.07)/86400 -> 0.04464596235 | Y69: =COUNT(F69,H69,I69,K69:L69,N69,P69,R69,S69,U69,V69,X69) -> 3 | Z69: =IFERROR(AVERAGE(F69,H69,I69,K69:L69,N69,P69,R69,S69,U69,V69,X69),"No race run") -> 0.04593109649 | AA69: =IF(COUNT(F69,H69,I69,K69:L69,N69,P69,R69,#REF!,U69)>5,5,COUNT(F69,H69,I69,K69:L69,N69,P69,R69,#REF!,U69)) -> 3 | AB69: =IFERROR(IF(Y69>5,AVERAGE(SMALL((F69,H69,I69,K69:L69,N69,P69,R69,S69,U69,V69,X69),{1,2,3,4,5})),Z69),"No race run") -> 0.04593109649
B70: MacCalman | C70: Sandy | D70: M | I70: 0.05025462963 | J70: 0.02195601852 | K70: =(J70*86400)*POWER((10/5),1.07)/86400 -> 0.04609519789 | M70: 0.03961805556 | N70: =(M70*86400)*POWER((6.2138818/5),1.07)/86400 -> 0.04999121005 | Y70: =COUNT(F70,H70,I70,K70:L70,N70,P70,R70,S70,U70,V70,X70) -> 3 | Z70: =IFERROR(AVERAGE(F70,H70,I70,K70:L70,N70,P70,R70,S70,U70,V70,X70),"No race run") -> 0.04878034585 | AA70: =IF(COUNT(F70,H70,I70,K70:L70,N70,P70,R70,#REF!,U70)>5,5,COUNT(F70,H70,I70,K70:L70,N70,P70,R70,#REF!,U70)) -> 3 | AB70: =IFERROR(IF(Y70>5,AVERAGE(SMALL((F70,H70,I70,K70:L70,N70,P70,R70,S70,U70,V70,X70),{1,2,3,4,5})),Z70),"No race run") -> 0.04878034585
B71: Nouillan | C71: Bill | D71: M | E71: 0.1103935185 | F71: =(E71*86400)*POWER((6.2138818/13.1094),1.07)/86400 -> 0.04966247513 | G71: 0.08388888889 | H71: =(G71*86400)*POWER((6.2138818/10),1.07)/86400 -> 0.05041999975 | J71: 0.02344907407 | K71: =(J71*86400)*POWER((10/5),1.07)/86400 -> 0.04922976854 | L71: 0.04903935185 | M71: 0.0396875 | N71: =(M71*86400)*POWER((6.2138818/5),1.07)/86400 -> 0.05007883706 | O71: 0.02915509259 | P71: =(O71*86400)*POWER((6.2138818/3.9),1.07)/86400 -> 0.04799253525 | Y71: =COUNT(F71,H71,I71,K71:L71,N71,P71,R71,S71,U71,V71,X71) -> 6 | Z71: =IFERROR(AVERAGE(F71,H71,I71,K71:L71,N71,P71,R71,S71,U71,V71,X71),"No race run") -> 0.04940382793 | AA71: =IF(COUNT(F71,H71,I71,K71:L71,N71,P71,R71,#REF!,U71)>5,5,COUNT(F71,H71,I71,K71:L71,N71,P71,R71,#REF!,U71)) -> 5 | AB71: =IFERROR(IF(Y71>5,AVERAGE(SMALL((F71,H71,I71,K71:L71,N71,P71,R71,S71,U71,V71,X71),{1,2,3,4,5})),Z71),"No race run") -> 0.04920059357
B72: Laycock | C72: Andy | D72: M | Y72: =COUNT(F72,H72,I72,K72:L72,N72,P72,R72,S72,U72,V72,X72) -> 0 | Z72: =IFERROR(AVERAGE(F72,H72,I72,K72:L72,N72,P72,R72,S72,U72,V72,X72),"No race run") -> No race run | AA72: =IF(COUNT(F72,H72,I72,K72:L72,N72,P72,R72,#REF!,U72)>5,5,COUNT(F72,H72,I72,K72:L72,N72,P72,R72,#REF!,U72)) -> 0 | AB72: =IFERROR(IF(Y72>5,AVERAGE(SMALL((F72,H72,I72,K72:L72,N72,P72,R72,S72,U72,V72,X72),{1,2,3,4,5})),Z72),"No race run") -> No race run
B73: Boyle | C73: Mhairi | D73: F | Y73: =COUNT(F73,H73,I73,K73:L73,N73,P73,R73,S73,U73,V73,X73) -> 0 | Z73: =IFERROR(AVERAGE(F73,H73,I73,K73:L73,N73,P73,R73,S73,U73,V73,X73),"No race run") -> No race run | AA73: =IF(COUNT(F73,H73,I73,K73:L73,N73,P73,R73,#REF!,U73)>5,5,COUNT(F73,H73,I73,K73:L73,N73,P73,R73,#REF!,U73)) -> 0 | AB73: =IFERROR(IF(Y73>5,AVERAGE(SMALL((F73,H73,I73,K73:L73,N73,P73,R73,S73,U73,V73,X73),{1,2,3,4,5})),Z73),"No race run") -> No race run
B74: Porter | C74: Hazel | D74: F | Y74: =COUNT(F74,H74,I74,K74:L74,N74,P74,R74,S74,U74,V74,X74) -> 0 | Z74: =IFERROR(AVERAGE(F74,H74,I74,K74:L74,N74,P74,R74,S74,U74,V74,X74),"No race run") -> No race run | AA74: =IF(COUNT(F74,H74,I74,K74:L74,N74,P74,R74,#REF!,U74)>5,5,COUNT(F74,H74,I74,K74:L74,N74,P74,R74,#REF!,U74)) -> 0 | AB74: =IFERROR(IF(Y74>5,AVERAGE(SMALL((F74,H74,I74,K74:L74,N74,P74,R74,S74,U74,V74,X74),{1,2,3,4,5})),Z74),"No race run") -> No race run
B75: Baughan | C75: Nick | D75: M | Y75: =COUNT(F75,H75,I75,K75:L75,N75,P75,R75,S75,U75,V75,X75) -> 0 | Z75: =IFERROR(AVERAGE(F75,H75,I75,K75:L75,N75,P75,R75,S75,U75,V75,X75),"No race run") -> No race run | AA75: =IF(COUNT(F75,H75,I75,K75:L75,N75,P75,R75,#REF!,U75)>5,5,COUNT(F75,H75,I75,K75:L75,N75,P75,R75,#REF!,U75)) -> 0 | AB75: =IFERROR(IF(Y75>5,AVERAGE(SMALL((F75,H75,I75,K75:L75,N75,P75,R75,S75,U75,V75,X75),{1,2,3,4,5})),Z75),"No race run") -> No race run
B76: Truesdale | C76: Iain | D76: M | Y76: =COUNT(F76,H76,I76,K76:L76,N76,P76,R76,S76,U76,V76,X76) -> 0 | Z76: =IFERROR(AVERAGE(F76,H76,I76,K76:L76,N76,P76,R76,S76,U76,V76,X76),"No race run") -> No race run | AA76: =IF(COUNT(F76,H76,I76,K76:L76,N76,P76,R76,#REF!,U76)>5,5,COUNT(F76,H76,I76,K76:L76,N76,P76,R76,#REF!,U76)) -> 0 | AB76: =IFERROR(IF(Y76>5,AVERAGE(SMALL((F76,H76,I76,K76:L76,N76,P76,R76,S76,U76,V76,X76),{1,2,3,4,5})),Z76),"No race run") -> No race run
B77: Boyle | C77: John | D77: M | Y77: =COUNT(F77,H77,I77,K77:L77,N77,P77,R77,S77,U77,V77,X77) -> 0 | Z77: =IFERROR(AVERAGE(F77,H77,I77,K77:L77,N77,P77,R77,S77,U77,V77,X77),"No race run") -> No race run | AA77: =IF(COUNT(F77,H77,I77,K77:L77,N77,P77,R77,#REF!,U77)>5,5,COUNT(F77,H77,I77,K77:L77,N77,P77,R77,#REF!,U77)) -> 0 | AB77: =IFERROR(IF(Y77>5,AVERAGE(SMALL((F77,H77,I77,K77:L77,N77,P77,R77,S77,U77,V77,X77),{1,2,3,4,5})),Z77),"No race run") -> No race run
B78: Hookham | C78: Peter | D78: M | Y78: =COUNT(F78,H78,I78,K78:L78,N78,P78,R78,S78,U78,V78,X78) -> 0 | Z78: =IFERROR(AVERAGE(F78,H78,I78,K78:L78,N78,P78,R78,S78,U78,V78,X78),"No race run") -> No race run | AA78: =IF(COUNT(F78,H78,I78,K78:L78,N78,P78,R78,#REF!,U78)>5,5,COUNT(F78,H78,I78,K78:L78,N78,P78,R78,#REF!,U78)) -> 0 | AB78: =IFERROR(IF(Y78>5,AVERAGE(SMALL((F78,H78,I78,K78:L78,N78,P78,R78,S78,U78,V78,X78),{1,2,3,4,5})),Z78),"No race run") -> No race run
B79: Palmer | C79: Linda | D79: F | Y79: =COUNT(F79,H79,I79,K79:L79,N79,P79,R79,S79,U79,V79,X79) -> 0 | Z79: =IFERROR(AVERAGE(F79,H79,I79,K79:L79,N79,P79,R79,S79,U79,V79,X79),"No race run") -> No race run | AA79: =IF(COUNT(F79,H79,I79,K79:L79,N79,P79,R79,#REF!,U79)>5,5,COUNT(F79,H79,I79,K79:L79,N79,P79,R79,#REF!,U79)) -> 0 | AB79: =IFERROR(IF(Y79>5,AVERAGE(SMALL((F79,H79,I79,K79:L79,N79,P79,R79,S79,U79,V79,X79),{1,2,3,4,5})),Z79),"No race run") -> No race run
B80: Tweddle | C80: Scott | D80: M | Y80: =COUNT(F80,H80,I80,K80:L80,N80,P80,R80,S80,U80,V80,X80) -> 0 | Z80: =IFERROR(AVERAGE(F80,H80,I80,K80:L80,N80,P80,R80,S80,U80,V80,X80),"No race run") -> No race run | AA80: =IF(COUNT(F80,H80,I80,K80:L80,N80,P80,R80,#REF!,U80)>5,5,COUNT(F80,H80,I80,K80:L80,N80,P80,R80,#REF!,U80)) -> 0 | AB80: =IFERROR(IF(Y80>5,AVERAGE(SMALL((F80,H80,I80,K80:L80,N80,P80,R80,S80,U80,V80,X80),{1,2,3,4,5})),Z80),"No race run") -> No race run
B81: Hunter | C81: Finlay | D81: M | Y81: =COUNT(F81,H81,I81,K81:L81,N81,P81,R81,S81,U81,V81,X81) -> 0 | Z81: =IFERROR(AVERAGE(F81,H81,I81,K81:L81,N81,P81,R81,S81,U81,V81,X81),"No race run") -> No race run | AA81: =IF(COUNT(F81,H81,I81,K81:L81,N81,P81,R81,#REF!,U81)>5,5,COUNT(F81,H81,I81,K81:L81,N81,P81,R81,#REF!,U81)) -> 0 | AB81: =IFERROR(IF(Y81>5,AVERAGE(SMALL((F81,H81,I81,K81:L81,N81,P81,R81,S81,U81,V81,X81),{1,2,3,4,5})),Z81),"No race run") -> No race run
B82: Aitken | C82: Kerry | D82: F | Y82: =COUNT(F82,H82,I82,K82:L82,N82,P82,R82,S82,U82,V82,X82) -> 0 | Z82: =IFERROR(AVERAGE(F82,H82,I82,K82:L82,N82,P82,R82,S82,U82,V82,X82),"No race run") -> No race run | AA82: =IF(COUNT(F82,H82,I82,K82:L82,N82,P82,R82,#REF!,U82)>5,5,COUNT(F82,H82,I82,K82:L82,N82,P82,R82,#REF!,U82)) -> 0 | AB82: =IFERROR(IF(Y82>5,AVERAGE(SMALL((F82,H82,I82,K82:L82,N82,P82,R82,S82,U82,V82,X82),{1,2,3,4,5})),Z82),"No race run") -> No race run
B83: Kemp | C83: Fiona | D83: F | Y83: =COUNT(F83,H83,I83,K83:L83,N83,P83,R83,S83,U83,V83,X83) -> 0 | Z83: =IFERROR(AVERAGE(F83,H83,I83,K83:L83,N83,P83,R83,S83,U83,V83,X83),"No race run") -> No race run | AA83: =IF(COUNT(F83,H83,I83,K83:L83,N83,P83,R83,#REF!,U83)>5,5,COUNT(F83,H83,I83,K83:L83,N83,P83,R83,#REF!,U83)) -> 0 | AB83: =IFERROR(IF(Y83>5,AVERAGE(SMALL((F83,H83,I83,K83:L83,N83,P83,R83,S83,U83,V83,X83),{1,2,3,4,5})),Z83),"No race run") -> No race run
B84: McCulloch | C84: Angus | D84: M | Y84: =COUNT(F84,H84,I84,K84:L84,N84,P84,R84,S84,U84,V84,X84) -> 0 | Z84: =IFERROR(AVERAGE(F84,H84,I84,K84:L84,N84,P84,R84,S84,U84,V84,X84),"No race run") -> No race run | AA84: =IF(COUNT(F84,H84,I84,K84:L84,N84,P84,R84,#REF!,U84)>5,5,COUNT(F84,H84,I84,K84:L84,N84,P84,R84,#REF!,U84)) -> 0 | AB84: =IFERROR(IF(Y84>5,AVERAGE(SMALL((F84,H84,I84,K84:L84,N84,P84,R84,S84,U84,V84,X84),{1,2,3,4,5})),Z84),"No race run") -> No race run
B85: Cuthbert | C85: Keith | D85: M | Y85: =COUNT(F85,H85,I85,K85:L85,N85,P85,R85,S85,U85,V85,X85) -> 0 | Z85: =IFERROR(AVERAGE(F85,H85,I85,K85:L85,N85,P85,R85,S85,U85,V85,X85),"No race run") -> No race run | AA85: =IF(COUNT(F85,H85,I85,K85:L85,N85,P85,R85,#REF!,U85)>5,5,COUNT(F85,H85,I85,K85:L85,N85,P85,R85,#REF!,U85)) -> 0 | AB85: =IFERROR(IF(Y85>5,AVERAGE(SMALL((F85,H85,I85,K85:L85,N85,P85,R85,S85,U85,V85,X85),{1,2,3,4,5})),Z85),"No race run") -> No race run
B86: Parsons | C86: Vicky | D86: F | Y86: =COUNT(F86,H86,I86,K86:L86,N86,P86,R86,S86,U86,V86,X86) -> 0 | Z86: =IFERROR(AVERAGE(F86,H86,I86,K86:L86,N86,P86,R86,S86,U86,V86,X86),"No race run") -> No race run | AA86: =IF(COUNT(F86,H86,I86,K86:L86,N86,P86,R86,#REF!,U86)>5,5,COUNT(F86,H86,I86,K86:L86,N86,P86,R86,#REF!,U86)) -> 0 | AB86: =IFERROR(IF(Y86>5,AVERAGE(SMALL((F86,H86,I86,K86:L86,N86,P86,R86,S86,U86,V86,X86),{1,2,3,4,5})),Z86),"No race run") -> No race run
B87: Cuthbert | C87: Catriona | D87: F | Y87: =COUNT(F87,H87,I87,K87:L87,N87,P87,R87,S87,U87,V87,X87) -> 0 | Z87: =IFERROR(AVERAGE(F87,H87,I87,K87:L87,N87,P87,R87,S87,U87,V87,X87),"No race run") -> No race run | AA87: =IF(COUNT(F87,H87,I87,K87:L87,N87,P87,R87,#REF!,U87)>5,5,COUNT(F87,H87,I87,K87:L87,N87,P87,R87,#REF!,U87)) -> 0 | AB87: =IFERROR(IF(Y87>5,AVERAGE(SMALL((F87,H87,I87,K87:L87,N87,P87,R87,S87,U87,V87,X87),{1,2,3,4,5})),Z87),"No race run") -> No race run
B88: Robertson | C88: Neil | D88: M | Y88: =COUNT(F88,H88,I88,K88:L88,N88,P88,R88,S88,U88,V88,X88) -> 0 | Z88: =IFERROR(AVERAGE(F88,H88,I88,K88:L88,N88,P88,R88,S88,U88,V88,X88),"No race run") -> No race run | AA88: =IF(COUNT(F88,H88,I88,K88:L88,N88,P88,R88,#REF!,U88)>5,5,COUNT(F88,H88,I88,K88:L88,N88,P88,R88,#REF!,U88)) -> 0 | AB88: =IFERROR(IF(Y88>5,AVERAGE(SMALL((F88,H88,I88,K88:L88,N88,P88,R88,S88,U88,V88,X88),{1,2,3,4,5})),Z88),"No race run") -> No race run
B89: Coutts | C89: Pippa | D89: F | Y89: =COUNT(F89,H89,I89,K89:L89,N89,P89,R89,S89,U89,V89,X89) -> 0 | Z89: =IFERROR(AVERAGE(F89,H89,I89,K89:L89,N89,P89,R89,S89,U89,V89,X89),"No race run") -> No race run | AA89: =IF(COUNT(F89,H89,I89,K89:L89,N89,P89,R89,#REF!,U89)>5,5,COUNT(F89,H89,I89,K89:L89,N89,P89,R89,#REF!,U89)) -> 0 | AB89: =IFERROR(IF(Y89>5,AVERAGE(SMALL((F89,H89,I89,K89:L89,N89,P89,R89,S89,U89,V89,X89),{1,2,3,4,5})),Z89),"No race run") -> No race run
B90: Hunter | C90: Lynn | D90: F | Y90: =COUNT(F90,H90,I90,K90:L90,N90,P90,R90,S90,U90,V90,X90) -> 0 | Z90: =IFERROR(AVERAGE(F90,H90,I90,K90:L90,N90,P90,R90,S90,U90,V90,X90),"No race run") -> No race run | AA90: =IF(COUNT(F90,H90,I90,K90:L90,N90,P90,R90,#REF!,U90)>5,5,COUNT(F90,H90,I90,K90:L90,N90,P90,R90,#REF!,U90)) -> 0 | AB90: =IFERROR(IF(Y90>5,AVERAGE(SMALL((F90,H90,I90,K90:L90,N90,P90,R90,S90,U90,V90,X90),{1,2,3,4,5})),Z90),"No race run") -> No race run
B91: Smith | C91: Norman | D91: M | Y91: =COUNT(F91,H91,I91,K91:L91,N91,P91,R91,S91,U91,V91,X91) -> 0 | Z91: =IFERROR(AVERAGE(F91,H91,I91,K91:L91,N91,P91,R91,S91,U91,V91,X91),"No race run") -> No race run | AA91: =IF(COUNT(F91,H91,I91,K91:L91,N91,P91,R91,#REF!,U91)>5,5,COUNT(F91,H91,I91,K91:L91,N91,P91,R91,#REF!,U91)) -> 0 | AB91: =IFERROR(IF(Y91>5,AVERAGE(SMALL((F91,H91,I91,K91:L91,N91,P91,R91,S91,U91,V91,X91),{1,2,3,4,5})),Z91),"No race run") -> No race run
B92: Hill | C92: Lisa | D92: F | Y92: =COUNT(F92,H92,I92,K92:L92,N92,P92,R92,S92,U92,V92,X92) -> 0 | Z92: =IFERROR(AVERAGE(F92,H92,I92,K92:L92,N92,P92,R92,S92,U92,V92,X92),"No race run") -> No race run | AA92: =IF(COUNT(F92,H92,I92,K92:L92,N92,P92,R92,#REF!,U92)>5,5,COUNT(F92,H92,I92,K92:L92,N92,P92,R92,#REF!,U92)) -> 0 | AB92: =IFERROR(IF(Y92>5,AVERAGE(SMALL((F92,H92,I92,K92:L92,N92,P92,R92,S92,U92,V92,X92),{1,2,3,4,5})),Z92),"No race run") -> No race run
B93: Logan | C93: Keith | D93: M | Y93: =COUNT(F93,H93,I93,K93:L93,N93,P93,R93,S93,U93,V93,X93) -> 0 | Z93: =IFERROR(AVERAGE(F93,H93,I93,K93:L93,N93,P93,R93,S93,U93,V93,X93),"No race run") -> No race run | AA93: =IF(COUNT(F93,H93,I93,K93:L93,N93,P93,R93,#REF!,U93)>5,5,COUNT(F93,H93,I93,K93:L93,N93,P93,R93,#REF!,U93)) -> 0 | AB93: =IFERROR(IF(Y93>5,AVERAGE(SMALL((F93,H93,I93,K93:L93,N93,P93,R93,S93,U93,V93,X93),{1,2,3,4,5})),Z93),"No race run") -> No race run
